Cogmind - Beta 12 @@@ ROGUE MODE // 2024.02.23 @ 16:39:08 Player: Dosh Result: Destroyed by H-61 Shepherd with Heavy Assault Cannon Performance ------------- Evolutions (3) 1500 Regions Visited (14) 2800 Robots Destroyed (243) 1215 Value Destroyed (8478) 8478 Prototype IDs (39) 780 Alien Tech Used (0) 0 Bonus (3573) 3573 TOTAL SCORE: 18346 Bonus ------- High Alert Combat Kills 532 Follower Combat Kills 387 Entered Garrisons 600 Used RIF Installer 2000 Aligned with FarCom 300 Friendly Fire -246 Cogmind --------- Core Integrity 0/700 Matter 74/300 Energy 100/100 System Corruption 1% Temperature Cool (0) Movement Core (1400) Ox27 Location -7/Garrison Parts ------- > --- POWER (1) -------- (None) > --- PROPULSION (4) --- (None) > --- UTILITY (6) ------ Huge Storage Unit Hacking Suite Relay Coupler [Grunt] (6) Relay Coupler [Hunter] (18) > --- WEAPON (2) ------- Great Axe > --- INVENTORY (25) --- Antimatter Reactor Structural Scanner Experimental Sensor Array Improved Medium Armor Plating Hacking Suite System Shield Relay Coupler [NC] (33) Relay Coupler [Sentry] (20) Relay Coupler [Sentry] (22) Relay Coupler [Hunter] (16) Chronowheel Improved EM Pulse Cannon Improved EM Pulse Cannon Compact Ion Cannon Gauss Rifle Remote Datajack Peak State ------------ > --- POWER ------------ Antimatter Reactor > --- PROPULSION ------- Heavy Treads Heavy Treads > --- UTILITY ---------- Improved Cooling System Huge Storage Unit Improved Medium Armor Plating Improved Medium Armor Plating Hacking Suite Relay Coupler [Specialist] > --- WEAPON ----------- Compact Ion Cannon Gauss Rifle > --- INVENTORY -------- Antimatter Reactor Heavy Treads Structural Scanner Experimental Sensor Array Improved Medium Armor Plating Improved Medium Armor Plating Improved Medium Armor Plating Shield Generator Improved Shield Generator Hacking Suite System Shield Relay Coupler [NC] Relay Coupler [Grunt] Relay Coupler [Sentry] Relay Coupler [Hunter] Relay Coupler [Hunter] Chronowheel Improved EM Pulse Cannon Improved EM Pulse Cannon Precision Assault Rifle Assault Cannon Rocket Launcher Remote Datajack Great Axe [Rating: 73] Favorites ----------- Power Cooled Ion Engine Engine Cooled Ion Engine Reactor Antimatter Reactor Propulsion Light Treads Treads Light Treads Wheel Armored Huge Wheel Utility Improved Medium Armor Plating Device Improved Shield Generator Storage Huge Storage Unit Processor Advanced Visual Processing Unit Hackware Hacking Suite Protection Improved Medium Armor Plating Weapon Heavy Assault Rifle Energy Gun Improved EM Shotgun Energy Cannon Compact Ion Cannon Ballistic Gun Heavy Assault Rifle Ballistic Cannon Flak Cannon Launcher Rocket Launcher Special Weapon Remote Datajack Slashing Weapon Great Axe Special Melee Weapon Improved Datajack Build | -11 -10 -10 -9 -9 -9 -8 -8 -8 -8 -8 -7 -7 -7 -7 ------- Run | Jun Mat Min Mat Min Exi Min Mat Gar Mat Gar Fac Was Fac Gar Slots Evolved 6 | . . . 2 . . . 2 . . . 2 . . . Power . | . . . . . . . . . . . . . . . Propulsion 2 | . . . . . . . 1 . . . 1 . . . Utility 4 | . . . 2 . . . 1 . . . 1 . . . Weapon . | . . . . . . . . . . . . . . . Parts Attached 194 | 6 15 2 21 9 1 1 8 10 22 17 27 11 24 20 Power 12 | 1 3 . 1 . . . . . 2 . 2 2 . 1 Engine 9 | 1 3 . 1 . . . . . 2 . 2 . . . Core . | . . . . . . . . . . . . . . . Reactor 3 | . . . . . . . . . . . . 2 . 1 Propulsion 36 | 2 2 . 8 4 . . 2 2 7 2 3 3 . 1 Treads 34 | 2 2 . 8 4 . . 2 2 7 2 1 3 . 1 Leg . | . . . . . . . . . . . . . . . Wheel 2 | . . . . . . . . . . . 2 . . . Hover . | . . . . . . . . . . . . . . . Flight . | . . . . . . . . . . . . . . . Utility 76 | 1 4 1 8 1 . . 1 3 7 8 11 3 16 12 Device 27 | . 2 . 2 . . . 1 1 2 3 5 2 6 3 Storage 4 | 1 1 . . 1 . . . . 1 . . . . . Processor 1 | . . . . . . . . . 1 . . . . . Hackware 16 | . . . 1 . . . . . 1 2 5 . 3 4 Protection 28 | . 1 1 5 . . . . 2 2 3 1 1 7 5 Artifact . | . . . . . . . . . . . . . . . Weapon 70 | 2 6 1 4 4 1 1 5 5 6 7 11 3 8 6 Energy Gun 6 | 1 1 . 1 . . 1 . 1 . 1 . . . . Energy Cannon 11 | . . . . . . . 2 2 . . 2 2 3 . Ballistic Gun 15 | 1 5 1 1 . 1 . 1 . 2 . . 1 2 . Ballistic Cannon 15 | . . . 2 2 . . 1 1 2 3 3 . . 1 Launcher 8 | . . . . 2 . . 1 1 . 1 1 . . 2 Special Weapon 9 | . . . . . . . . . . . 4 . 3 2 Impact Weapon . | . . . . . . . . . . . . . . . Slashing Weapon 2 | . . . . . . . . . . . 1 . . 1 Piercing Weapon . | . . . . . . . . . . . . . . . Special Melee Weapon 4 | . . . . . . . . . 2 2 . . . . Unidentified Prototypes 3 | . . . 1 . . . . . . . . 1 1 . Parts Lost 28 | . 3 2 2 . . . . 1 1 4 . . 1 14 Power 2 | . 1 . . . . . . . . . . . . 1 Propulsion 4 | . . . . . . . . 1 . . . . . 3 Utility 14 | . . 1 2 . . . . . . 3 . . . 8 Weapon 8 | . 2 1 . . . . . . 1 1 . . 1 2 Highest Loss Streak 6 | . 2 2 1 . . . . 1 1 3 . . 1 6 To Critical Strikes . | . . . . . . . . . . . . . . . Average Slot Usage (%) 93 | . 98 95 98 100 100 100 100 99 97 98 91 83 82 78 Engine 7 | . 14 14 11 11 11 11 9 9 9 9 7 2 . . Reactor 1 | . . . . . . . . . . . . 4 7 6 Treads 21 | . 28 28 22 22 22 22 27 26 27 26 15 14 15 12 Device 7 | . 5 . 10 . . . 9 9 2 9 12 3 12 9 Storage 9 | . 14 14 11 11 11 11 9 9 9 9 7 7 7 7 Hackware 9 | . . . 5 11 11 11 9 9 9 6 11 15 13 11 Protection 15 | . 6 13 14 22 22 22 18 18 18 16 11 15 10 13 Energy Gun 2 | . 8 . 4 . . 11 . 2 . 6 . . . . Energy Cannon 2 | . . . . . . . 6 8 1 . 3 5 6 4 Ballistic Gun 7 | . 19 24 13 11 19 11 2 . 6 2 . 6 6 4 Ballistic Cannon 4 | . . . 4 10 2 . 8 6 8 8 9 . . 1 Naked Turns . | . . . . . . . . . . . . . . . Heaviest Build 127 | 12 40 40 49 101 101 100 108 118 118 117 119 123 127 124 Greatest Support 140 | 40 40 40 46 43 40 40 60 60 66 67 67 140 140 140 Greatest Overweight (x) 27 | . . . 1 2 2 2 1 1 1 1 11 4 . 27 Average Overweight (x) . | . . . . . 2 2 1 1 1 1 3 . . . Largest Inventory Capacity 25 | 8 15 15 15 25 25 25 25 25 25 25 25 25 25 25 Average Capacity 22 | 7 12 15 15 18 25 25 25 25 25 25 25 25 25 25 Most Carried 25 | 2 15 15 15 17 19 19 20 25 25 25 25 25 25 25 Average Carried 20 | . 9 14 14 15 17 19 19 22 24 22 24 24 23 22 Final Capacity 25 | 8 15 15 15 25 25 25 25 25 25 25 25 25 25 25 Final Carried 25 | 2 15 13 15 17 19 19 20 25 24 25 24 25 23 16 Class Distribution -------------------- 45% | Mutant 33% | Bothacker-Mutant 20% | Scavenger-Mutant Dominant Class ---------------- Mutant | -10/Materials Mutant | -10/Mines Mutant | -9/Materials Mutant | -9/Mines Mutant | -9/Exiles Mutant | -8/Mines Scavenger-Mutant | -8/Materials Scavenger-Mutant | -8/Garrison Mutant | -8/Materials Bothacker-Mutant | -8/Garrison Bothacker-Mutant | -7/Factory Bothacker-Mutant | -7/Waste Bothacker-Mutant | -7/Factory Bothacker-Mutant | -7/Garrison Resources | -11 -10 -10 -9 -9 -9 -8 -8 -8 -8 -8 -7 -7 -7 -7 ----------- Run | Jun Mat Min Mat Min Exi Min Mat Gar Mat Gar Fac Was Fac Gar Matter Collected 6187 | 113 442 97 725 282 . 94 97 365 1015 596 478 888 513 482 Remotely . | . . . . . . . . . . . . . . . Salvage Created 9223 | . 890 98 1426 107 . 297 133 409 1071 795 420 1595 1144 838 Parts 479 | . 59 3 101 13 . 14 16 30 55 42 19 22 53 52 Haulers Intercepted 13 | . 2 . 5 . . . 1 . 3 . 1 . 1 . Recyclers Shooed 4 | . . . 1 . . . . . 3 . . . . . Parts Field Recycled . | . . . . . . . . . . . . . . . Retrieved Matter . | . . . . . . . . . . . . . . . Parts Self-Destructed . | . . . . . . . . . . . . . . . Prevented . | . . . . . . . . . . . . . . . Kills | -11 -10 -10 -9 -9 -9 -8 -8 -8 -8 -8 -7 -7 -7 -7 ------- Run | Jun Mat Min Mat Min Exi Min Mat Gar Mat Gar Fac Was Fac Gar Combat Hostiles Destroyed 189 | . 17 3 26 10 . 7 8 17 20 22 11 5 19 24 Melee 2 | . . . . . . . . . . . 1 . . 1 Guns 90 | . 17 3 22 1 . 6 1 3 4 14 . 5 7 7 Cannons 69 | . . . 3 2 . . 5 7 16 6 6 . 11 13 AOE 26 | . . . 1 7 . 1 2 6 . 2 4 . . 3 Classes Destroyed 18 | . 6 1 3 . . 1 . 1 1 1 1 1 1 1 Worker 7 | . . . 2 . . . . . 4 . 1 . . . Builder 1 | . . . 1 . . . . . . . . . . . Hauler 13 | . 2 . 5 . . . 1 . 3 . 1 . 1 . Recycler 10 | . 1 . 4 1 . . . . 2 . . . 2 . Operator 5 | . 3 . 2 . . . . . . . . . . . Watcher 17 | . 3 . 4 . . . 1 2 4 . 1 . 2 . Swarmer 72 | . 3 . 13 10 . 3 7 13 2 3 5 . 3 10 Cutter 2 | . . . . . . . . . . 2 . . . . Grunt 69 | . 14 2 5 . . 3 . . 10 16 4 . 10 5 Brawler 2 | . . . . . . . . . . . . . 2 . Duelist 1 | . . . . . . . . . 1 . . . . . Sentry 20 | . . . 8 . . . . 1 7 . . . 1 3 Demolisher 1 | . . 1 . . . . . . . . . . . . Specialist 1 | . . . . . . . . 1 . . . . . . Hunter 7 | . . . . . . 1 1 2 . 1 . . 1 1 Programmer 9 | . . . . . . . . . . . 3 . 2 4 Behemoth 1 | . . . . . . . . . . . . . . 1 Compactor 5 | . . . . . . . . . . . . 5 . . Best Kill Streak 8 | . 4 2 5 6 . 3 5 8 4 4 4 1 4 8 Combat Bots Only 8 | . 4 2 3 6 . 3 4 8 3 4 4 1 3 8 Max Kills in Single Turn 3 | . 1 1 3 3 . 1 2 3 2 2 3 1 2 2 Gunslinging 1 | . . . 1 . . . . . . . . . . . Exploded 3 | . . . 1 3 . 1 2 3 . 2 3 . . 1 Melee 1 | . . . . . . . . . . . 1 . . 1 Uniques/NPCs Destroyed . | . . . . . . . . . . . . . . . Combat | -11 -10 -10 -9 -9 -9 -8 -8 -8 -8 -8 -7 -7 -7 -7 -------- Run | Jun Mat Min Mat Min Exi Min Mat Gar Mat Gar Fac Was Fac Gar Damage Taken 10922 | . 777 657 1297 296 . 285 114 516 812 998 950 5 749 3466 Core 1314 | . 105 69 177 25 . 9 . 36 96 74 120 . 32 571 Absorbed by Shields 1448 | . . . . . . . 46 160 162 161 244 . 271 404 Reduced by Siege Mode 224 | . . . . . . . . . . . . . 12 212 Regen/Repaired (Parts) 622 | . 98 . 255 . . . . . 34 . 23 . 212 . Core Remaining (%) 59 | 100 . 30 . . . 47 . . . 62 . . . . Volleys Fired 823 | . 82 18 101 19 . 17 19 33 85 63 62 129 80 115 Largest 2 | . 2 2 2 2 . 2 2 2 2 2 2 2 2 2 Hottest 134 | . 70 46 80 62 . 68 107 108 107 89 113 118 118 134 Shots Fired 1388 | . 162 27 193 35 . 34 35 56 171 115 94 165 132 169 Gun 816 | . 162 27 169 18 . 34 9 9 72 73 . 120 62 61 Cannon 504 | . . . 24 11 . . 25 44 99 40 77 36 55 93 Launcher 22 | . . . . 6 . . 1 3 . 2 3 . . 7 Special 46 | . . . . . . . . . . . 14 9 15 8 Kinetic 947 | . 91 27 174 29 . 17 28 14 157 70 64 120 62 94 Thermal 207 | . 71 . . . . . . . . . . 36 40 60 Explosive 22 | . . . . 6 . . 1 3 . 2 3 . . 7 Electromagnetic 166 | . . . 19 . . 17 6 39 14 43 13 . 15 . Robot Hit Streak 19 | . 12 12 18 3 . 19 6 13 13 19 9 17 16 17 Robot Miss Streak 10 | . 5 4 5 5 . 4 8 3 10 5 9 3 4 4 Penetration Max 1 | . . . . . . . . . . . . . 1 1 Secondary Targets 10 | . 3 . 4 . . 2 . . . 1 . . . . Max Gunslinging Chain 1 | . 1 . 1 . . 1 . . . 1 . . . . Shots Hit Robots 938 | . 93 20 127 13 . 28 26 35 120 77 69 129 89 112 Core Hits 502 | . 48 4 57 10 . 14 21 33 114 62 42 21 37 39 Critical Kills . | . . . . . . . . . . . . . . . Critical Parts Destroyed 1 | . . . . . . . . . . . . . . 1 Critical Strikes 6 | . 1 . . 1 . . . . . . 1 1 . 2 Burn 1 | . 1 . . . . . . . . . . . . . Destroy 3 | . . . . . . . . . . . . 1 . 2 Blast 2 | . . . . 1 . . . . . . 1 . . . Melee Attacks 32 | . . . . . . . . . 4 7 7 . . 14 Impact . | . . . . . . . . . . . . . . . Slashing 21 | . . . . . . . . . . . 7 . . 14 Piercing . | . . . . . . . . . . . . . . . Sneak Attacks 4 | . . . . . . . . . 4 . . . . . Combat Hostiles . | . . . . . . . . . . . . . . . Follow-up Attacks . | . . . . . . . . . . . . . . . Damage Inflicted 20711 | . 1020 300 2527 625 . 559 788 1350 2426 1483 1674 2821 2191 2947 Guns 8957 | . 997 293 1769 66 . 484 75 175 623 784 . 2108 920 663 Cannons 8076 | . . . 332 141 . . 342 600 1731 514 1021 713 1146 1536 Explosions 2901 | . . . 412 416 . 66 359 575 . 185 385 . . 503 Melee 424 | . . . . . . . . . . . 209 . . 215 Ramming 353 | . 23 7 14 2 . 9 12 . 72 . 59 . 125 30 Kinetic 11322 | . 500 293 1827 207 . 181 314 150 2132 827 680 2108 920 1183 Thermal 3602 | . 497 . 412 . . 66 46 32 . . . 713 820 1016 Explosive 2345 | . . . . 416 . . 313 543 . 185 385 . . 503 Electromagnetic 2665 | . . . 274 . . 303 103 625 222 471 341 . 326 . Impact . | . . . . . . . . . . . . . . . Slashing 424 | . . . . . . . . . . . 209 . . 215 Piercing . | . . . . . . . . . . . . . . . Highest Corruption 4 | . 2 2 1 1 1 1 2 2 2 3 4 . 1 2 Average Corruption 1 | . 2 2 1 1 1 1 1 2 2 2 2 . 1 1 Corruption Purged 9 | . . . . . . . . . . . 5 . 2 2 Corruption Blocked . | . . . . . . . . . . . . . . . Effects 164 | . 2 3 . 11 6 12 3 19 52 34 9 . 4 9 Message Errors 40 | . 1 1 . 3 3 3 . 5 15 7 . . . 2 Matter Fused 39 | . . 1 . 3 . 4 2 5 8 9 4 . 1 2 Heat Flow Errors 20 | . 1 . . 1 2 1 1 2 5 5 . . . 2 Energy Discharges 21 | . . . . 2 . 1 . 2 10 2 1 . 1 2 Parts Rejected 2 | . . . . 1 . . . 1 . . . . . . Parts Fused 1 | . . . . . . . . . . 1 . . . . Data Loss (minor) 19 | . . . . 1 . 3 . 1 6 4 2 . 2 . Data Loss (major) 7 | . . . . . . . . 2 5 . . . . . Misfires 6 | . . . . . . . . . 1 3 2 . . . Alerts 5 | . . 1 . . 1 . . 1 2 . . . . . Weapon Failures 4 | . . . . . . . . . . 3 . . . 1 Overload Shots . | . . . . . . . . . . . . . . . Overflow Damage 291 | . 10 . 19 40 . . 6 38 5 . 79 . 21 73 Projectiles 183 | . . . 2 23 . . . 36 2 . 35 . 20 65 Explosions 87 | . . . 17 17 . . 6 2 . . 37 . . 8 Melee 21 | . 10 . . . . . . . 3 . 7 . 1 . Knockbacks 96 | . 1 . 1 1 . . 9 2 35 13 25 . 1 8 Impact 3 | . 1 . . . . . . . . . . . 1 1 Kinetic 90 | . . . 1 1 . . 9 2 35 13 22 . . 7 Secondary 3 | . . . . . . . . . . . 3 . . . Self-Inflicted Damage 292 | . . . 173 . . . . 60 . . 29 . . 30 Shots 8 | . . . 5 . . . . 2 . . . . . 1 Rammed 32 | . 2 3 2 . . 2 2 . 7 . 2 . 8 4 Targets Rammed 37 | . 3 3 3 1 . 2 2 . 8 . 2 . 8 5 Kicked . | . . . . . . . . . . . . . . . Crushed 5 | . 1 . 1 1 . . . . 1 . . . . 1 Highest Temperature 443 | . 120 53 1 180 231 81 165 250 443 325 108 324 192 378 Average Temperature 73 | . 18 28 1 91 109 16 71 62 67 97 29 174 66 144 Received Heat Transfer 2783 | . 360 135 201 . . 63 6 24 363 578 209 . 192 652 Effects 3 | . . . . . . . . . 1 . . . . 2 Interference 3 | . . . . . . . . . 1 . . . . 2 Siege Activations 18 | . . . . . . . . . . . . . 5 13 Total Turns 330 | . . . . . . . . . . . . . 100 230 Longest Duration 80 | . . . . . . . . . . . . . 48 80 Robots Corrupted 3 | . . . . . . . . 1 . . 1 . 1 . Combat Hostiles 2 | . . . . . . . . 1 . . . . 1 . Parts Fried 11 | . 2 . . . . . . 5 . . 2 . 2 . Impact Corruptions 3 | . 1 . . . . . . . 1 . . . 1 . Robots Melted . | . . . . . . . . . . . . . . . Combat Hostiles . | . . . . . . . . . . . . . . . Parts Melted 7 | . 2 . . . . . . . . . 1 . 2 2 Heat Transferred 4920 | . 1364 . 300 . . . . . . . . 962 999 1295 Parts Sabotaged . | . . . . . . . . . . . . . . . Parts Stolen . | . . . . . . . . . . . . . . . Parts Stripped . | . . . . . . . . . . . . . . . Power Chain Reactions 8 | . . . 5 . . 1 1 1 . . . . . . Missiles Intercepted . | . . . . . . . . . . . . . . . Alert | -11 -10 -10 -9 -9 -9 -8 -8 -8 -8 -8 -7 -7 -7 -7 ------- Run | Jun Mat Min Mat Min Exi Min Mat Gar Mat Gar Fac Was Fac Gar Peak Influence 918 | . 370 132 443 381 . 135 290 725 417 886 620 118 215 918 Initial 464 | . . 82 51 103 . . . 189 352 35 464 118 . 58 Average 248 | . 240 84 280 153 . 40 59 381 178 500 412 48 77 512 Maximum Alert Level 3 | . 1 . 2 1 . . 1 3 2 3 2 . 1 3 Low Security (%) 48 | 100 21 100 18 72 . 100 85 5 65 20 . 100 97 13 Level 1 33 | . 78 . 69 27 . . 14 49 33 19 50 . 2 29 Level 2 12 | . . . 11 . . . . 34 . 31 49 . . 26 Level 3 5 | . . . . . . . . 10 . 28 . . . 31 Level 4 . | . . . . . . . . . . . . . . . Level 5 . | . . . . . . . . . . . . . . . High Security . | . . . . . . . . . . . . . . . Max Security . | . . . . . . . . . . . . . . . Squads Dispatched 30 | . 5 . 3 . . . 5 . 4 . 6 . 7 . Investigation 7 | . 2 . 1 . . . 1 . . . 2 . 1 . Extermination 5 | . . . . . . . . . . . 2 . 3 . Reinforcement 11 | . 3 . 2 . . . 1 . 1 . 1 . 3 . Assault . | . . . . . . . . . . . . . . . Garrison 7 | . . . . . . . 3 . 3 . 1 . . . Intercept . | . . . . . . . . . . . . . . . Searches Triggered . | . . . . . . . . . . . . . . . Construction Impeded 1 | . . . . . . . 1 . . . . . . . Haulers Reinforced 1 | . . . . . . . . . . . . . 1 . Active Scanning Responses . | . . . . . . . . . . . . . . . Cargo Convoy Interrupts . | . . . . . . . . . . . . . . . Alert ID Control Effect 5 | . . . . . . . . . . . 2 . 1 2 Stealth | -11 -10 -10 -9 -9 -9 -8 -8 -8 -8 -8 -7 -7 -7 -7 --------- Run | Jun Mat Min Mat Min Exi Min Mat Gar Mat Gar Fac Was Fac Gar Distress Signals 14 | . 4 . 3 . . . . 1 5 . . . 1 . Communications Jammed . | . . . . . . . . . . . . . . . Distress Signals . | . . . . . . . . . . . . . . . Times Spotted 298 | . 29 4 53 11 . 7 14 20 40 27 22 6 31 34 Peak Tracking Total 8 | . 6 2 4 4 . 3 3 8 5 4 5 2 3 8 Tactical Retreats 15 | . 2 . 2 . . . 1 2 . 1 1 . 3 3 Traps | -11 -10 -10 -9 -9 -9 -8 -8 -8 -8 -8 -7 -7 -7 -7 ------- Run | Jun Mat Min Mat Min Exi Min Mat Gar Mat Gar Fac Was Fac Gar Traps Triggered 25 | . 1 . 1 . . . 3 4 1 5 3 . 1 6 Indirectly . | . . . . . . . . . . . . . . . Trap Hack Attempts . | . . . . . . . . . . . . . . . Triggered . | . . . . . . . . . . . . . . . Disarmed . | . . . . . . . . . . . . . . . Reprogrammed . | . . . . . . . . . . . . . . . Reused . | . . . . . . . . . . . . . . . Traps Extracted . | . . . . . . . . . . . . . . . Installed . | . . . . . . . . . . . . . . . Triggered 2 | . . . . . . . . . . . 2 . . . Machines | -11 -10 -10 -9 -9 -9 -8 -8 -8 -8 -8 -7 -7 -7 -7 ---------- Run | Jun Mat Min Mat Min Exi Min Mat Gar Mat Gar Fac Was Fac Gar Machines Disabled 20 | . . . 4 1 . 1 2 2 . 3 . . 2 5 Max in Single Turn 2 | . . . 2 1 . 1 1 1 . 1 . . 1 1 Garrison Relay 8 | . . . . . . . . 2 . 4 . . . 2 Machines Repaired . | . . . . . . . . . . . . . . . Machines Sabotaged . | . . . . . . . . . . . . . . . Overloaded Fab Kills . | . . . . . . . . . . . . . . . Hacking | -11 -10 -10 -9 -9 -9 -8 -8 -8 -8 -8 -7 -7 -7 -7 --------- Run | Jun Mat Min Mat Min Exi Min Mat Gar Mat Gar Fac Was Fac Gar Machines Accessed 59 | . 7 . 12 1 2 . 3 1 9 4 5 . 12 3 Terminals 39 | . 4 . 8 1 . . 2 1 6 4 3 . 7 3 Fabricators . | . . . . . . . . . . . . . . . Repair Stations 6 | . 1 . 2 . . . . . 1 . 1 . 1 . Recycling Units 6 | . 2 . . . . . . . 1 . 1 . 2 . Scanalyzers 3 | . . . 2 . . . . . . . . . 1 . Garrison Access 3 | . . . . . . . 1 . 1 . . . 1 . Total Hacks 164 | . 25 . 37 2 2 . 9 2 28 12 13 . 29 5 Successful 88 | . 15 . 26 2 2 . 6 1 13 2 4 . 15 2 Failed 75 | . 10 . 10 . . . 3 1 15 10 9 . 14 3 Catastrophic 9 | . 1 . 1 . . . . . 2 1 2 . 1 1 Database Lockouts 1 | . . . 1 . . . . . . . . . . . Manual 68 | . 13 . 14 1 1 . 6 . 18 5 4 . 6 . Terminals 112 | . 15 . 23 2 . . 8 2 23 12 8 . 14 5 Fabricators . | . . . . . . . . . . . . . . . Repair Stations 28 | . 5 . 9 . . . . . 3 . 3 . 8 . Recycling Units 12 | . 5 . . . . . . . 1 . 2 . 4 . Scanalyzers 6 | . . . 5 . . . . . . . . . 1 . Garrison Access 4 | . . . . . . . 1 . 1 . . . 2 . Terminal Hacks 43 | . 8 . 13 2 2 . 2 1 6 2 . . 5 2 Record 2 | . . . 1 . 1 . . . . . . . . . Robot Schematic 1 | . 1 . . . . . . . . . . . . . Robot Analysis 9 | . 3 . 1 1 . . 2 . 1 . . . 1 . Prototype ID Bank 10 | . 2 . 5 . . . . . 2 . . . 1 . Emergency Access Points 2 | . . . 1 . . . . . . . . . . 1 Garrison Index 1 | . . . . . . . . . . . . . 1 . Alert Level 2 | . . . 2 . . . . . . . . . . . Unreport Threat 3 | . . . 2 . . . . . 1 . . . . . Locate Traps 3 | . 1 . 1 . . . . . . . . . 1 . Recall Reinforcements 1 | . . . . . . . . . . . . . 1 . Hauler Manifests 2 | . 1 . . . . . . . 1 . . . . . Zone Layout 2 | . . . . 1 . . . . 1 . . . . . Garrison Registry 2 | . . . . . . . . 1 . 1 . . . . Patrol Navigation 1 | . . . . . . . . . . . . . . 1 Security Stations 1 | . . . . . . . . . . 1 . . . . EX-Prototype ID Bank 1 | . . . . . 1 . . . . . . . . . Fabricator Hacks . | . . . . . . . . . . . . . . . Repair Station Hacks 19 | . 3 . 6 . . . . . 2 . 2 . 6 . Scan Component 10 | . 2 . 3 . . . . . 1 . 1 . 3 . Repair 9 | . 1 . 3 . . . . . 1 . 1 . 3 . Recycling Unit Hacks 2 | . . . . . . . . . 1 . 1 . . . Retrieve Components 2 | . . . . . . . . . 1 . 1 . . . Scanalyzer 4 | . . . 4 . . . . . . . . . . . Insert Component 2 | . . . 2 . . . . . . . . . . . Analyze 2 | . . . 2 . . . . . . . . . . . Garrison Access Hacks 3 | . . . . . . . 1 . 1 . . . 1 . Unlock Access 3 | . . . . . . . 1 . 1 . . . 1 . Unauthorized Hacks 17 | . 4 . 3 . . . 3 . 3 . 1 . 3 . Terminals 15 | . 2 . 3 . . . 3 . 3 . 1 . 3 . Track 1 | . . . 1 . . . . . . . . . . . Assimilate 1 | . . . . . . . 1 . . . . . . . Botnet 9 | . 1 . 2 . . . 1 . 2 . 1 . 2 . Operators 4 | . 1 . . . . . 1 . 1 . . . 1 . Fabricators . | . . . . . . . . . . . . . . . Repair Stations . | . . . . . . . . . . . . . . . Recycling Units 2 | . 2 . . . . . . . . . . . . . Tunnel 2 | . 2 . . . . . . . . . . . . . Scanalyzers . | . . . . . . . . . . . . . . . Garrison Access . | . . . . . . . . . . . . . . . Data Cores Recovered 1 | . . . . . . . . . . . 1 . . . Used . | . . . . . . . . . . . . . . . Hacking Detections 51 | . 5 . 11 1 . . 1 1 9 4 4 . 12 3 Full Trace Events 6 | . . . 1 . . . 1 . . 1 1 . 1 1 Feedback Events 1 | . . . . . . . . . . . 1 . . . Corruption 1 | . . . . . . . . . . . 1 . . . Feedback Blocked . | . . . . . . . . . . . . . . . Robot Schematics Acquired 1 | . 1 . . . . . . . . . . . . . Robots Built . | . . . . . . . . . . . . . . . Authchips . | . . . . . . . . . . . . . . . Time . | . . . . . . . . . . . . . . . Total Robot Build Rating . | . . . . . . . . . . . . . . . Part Schematics Acquired 1 | . . . 1 . . . . . . . . . . . Parts Built . | . . . . . . . . . . . . . . . Authchips . | . . . . . . . . . . . . . . . Time . | . . . . . . . . . . . . . . . Total Part Build Rating . | . . . . . . . . . . . . . . . Parts Repaired 9 | . 1 . 3 . . . . . 1 . 1 . 3 . Time 389 | . 26 . 109 . . . . . 44 . 54 . 156 . Parts Recycled . | . . . . . . . . . . . . . . . Recycled Matter . | . . . . . . . . . . . . . . . Retrieved Matter . | . . . . . . . . . . . . . . . Retrieved Components 14 | . . . . . . . . . 7 . 7 . . . Parts Scanalyzed 2 | . . . 2 . . . . . . . . . . . Part Schematics Acquired 1 | . . . 1 . . . . . . . . . . . Parts Damaged . | . . . . . . . . . . . . . . . Bothacking | -11 -10 -10 -9 -9 -9 -8 -8 -8 -8 -8 -7 -7 -7 -7 ------------ Run | Jun Mat Min Mat Min Exi Min Mat Gar Mat Gar Fac Was Fac Gar Used RIF Installer 4 | . . . . . . . . 1 . 2 . . . 1 Threat Obfuscator 1 | . . . . . . . . . . . . . . 1 Zone Cloak 1 | . . . . . . . . . . 1 . . . . Alert ID Control 1 | . . . . . . . . . . 1 . . . . Robots Hacked 29 | . . . . . . . . . 1 4 5 6 7 6 Non-combat 7 | . . . . . . . . . 1 . 2 . 4 . Combat 22 | . . . . . . . . . . 4 3 6 3 6 Robot Hacks Applied 43 | . . . . . . . . . 4 5 11 7 10 6 parse_system 1 | . . . . . . . . . . . . 1 . . no_distress 1 | . . . . . . . . . . . 1 . . . randomize_corridors 1 | . . . . . . . . . . . . . 1 . find_fabricator 1 | . . . . . . . . . . . 1 . . . drop_inventory 2 | . . . . . . . . . . . 1 . 1 . locate_stockpiles 2 | . . . . . . . . . . . 1 . 1 . purge_threat 3 | . . . . . . . . . 1 . 1 . 1 . find_terminals 1 | . . . . . . . . . 1 . . . . . locate_traps 2 | . . . . . . . . . . . 1 . 1 . reprogram_traps 1 | . . . . . . . . . . . 1 . . . clear_recycling 1 | . . . . . . . . . . . 1 . . . ignore_targets 6 | . . . . . . . . . . . . 6 . . link_fov 1 | . . . . . . . . . 1 . . . . . link_complan 1 | . . . . . . . . . . 1 . . . . broadcast_data 1 | . . . . . . . . . . 1 . . . . overload_power 1 | . . . . . . . . . . . . . . 1 overwrite_iff 9 | . . . . . . . . . . 3 . . 2 4 formatsys_low 3 | . . . . . . . . . 1 . . . 2 . formatsys_high 5 | . . . . . . . . . . . 3 . 1 1 Relay Couplers Released 33 | . . . . . . . . 8 . 15 . . . 10 Machine Destruction 33 | . . . . . . . . 8 . 15 . . . 10 Attached 14 | . . . . . . . . . 1 1 5 . 3 4 Fabnet Peak Effective % . | . . . . . . . . . . . . . . . Robots Rewired 3 | . . . . . . . . . . 3 . . . . Allies Hacked 1 | . . . . . . . . . . . . . . 1 Hacks Repelled . | . . . . . . . . . . . . . . . Allies | -11 -10 -10 -9 -9 -9 -8 -8 -8 -8 -8 -7 -7 -7 -7 -------- Run | Jun Mat Min Mat Min Exi Min Mat Gar Mat Gar Fac Was Fac Gar Total Allies 21 | . . . . . . . 1 . 1 6 3 . 5 5 Largest Group 3 | . . . . . . . 1 1 1 3 3 1 2 2 Highest-Rated Group 64 | . . . . . . . 10 10 10 48 64 32 37 38 Highest-Rated Ally 32 | . . . . . . . 10 10 10 16 32 32 32 26 Total Orders 10 | . . . . . . . . . 6 . . . 1 3 STAY 4 | . . . . . . . . . 3 . . . . 1 FOLLOW 4 | . . . . . . . . . 3 . . . . 1 DROP 1 | . . . . . . . . . . . . . 1 . PICKUP 1 | . . . . . . . . . . . . . . 1 Ally Attacks 86 | . . . . . . . . . . 10 37 12 9 18 Total Damage 2183 | . . . . . . . . . . 150 990 620 242 181 Kills 12 | . . . . . . . . . . 2 6 1 1 2 Allies Corrupted 1 | . . . . . . . . . . . . . 1 . Allies Melted . | . . . . . . . . . . . . . . . Intel | -11 -10 -10 -9 -9 -9 -8 -8 -8 -8 -8 -7 -7 -7 -7 ------- Run | Jun Mat Min Mat Min Exi Min Mat Gar Mat Gar Fac Was Fac Gar Robot Analysis Total 9 | . 3 . 1 1 . . 2 . 1 . . . 1 . Derelict Logs Recovered 1 | . . . . 1 . . . . . . . . . . Drone Launches . | . . . . . . . . . . . . . . . Drone Recoveries . | . . . . . . . . . . . . . . . Exploration | -11 -10 -10 -9 -9 -9 -8 -8 -8 -8 -8 -7 -7 -7 -7 ------------- Run | Jun Mat Min Mat Min Exi Min Mat Gar Mat Gar Fac Was Fac Gar Turns Passed 21339 | 60 1507 227 2417 1335 698 1040 758 1199 3554 1684 1741 867 2497 1755 Spaces Moved 8575 | 33 717 106 951 628 218 301 154 425 1346 589 876 339 1228 664 Core 4 | 2 . . . . . . . . . . . . . 2 Treads 7621 | 31 717 106 951 628 218 301 154 425 1346 589 13 252 1228 662 Legs . | . . . . . . . . . . . . . . . Wheels 950 | . . . . . . . . . . . 863 87 . . Hover . | . . . . . . . . . . . . . . . Flight . | . . . . . . . . . . . . . . . Fastest Speed 50 | 50 160 160 160 160 320 320 240 240 225 225 145 145 160 160 Average Speed 200 | 153 160 160 202 200 320 320 240 240 230 228 159 158 160 181 Slowest Speed 1400 | 160 160 160 240 320 320 320 240 240 240 230 245 240 160 1400 Overloaded Moves . | . . . . . . . . . . . . . . . Propulsion Burnouts . | . . . . . . . . . . . . . . . Robots Hopped . | . . . . . . . . . . . . . . . Cave-ins Triggered . | . . . . . . . . . . . . . . . Exploration Rate (%) 59 | 3 93 20 83 98 61 86 20 50 75 68 27 100 35 66 Regions Visited 14 Branch Regions 4 Pre-discovered Areas 3 | . 2 . . . 1 . . . . . . . . . Known Exits Taken 3 | . . . . . . . 1 . 1 . . . 1 . Unknown Exits Taken 7 | 1 1 1 1 1 1 1 . . . . . . . . Scrap Searched 5 | . . 1 . 3 . 1 . . . . . . . . Spaces Dug 5 | . . . . . . . . 2 . . 1 . 2 . Terrain Destroyed 195 | . . . 61 64 . 5 15 4 . 14 7 6 7 12 Melee 1 | . . . . . . . . . . . 1 . . . Projectile 17 | . . . . 1 . . . . . . . 6 7 3 AOE 177 | . . . 61 63 . 5 15 4 . 14 6 . . 9 Terrain Rammed . | . . . . . . . . . . . . . . . Walls Destroyed . | . . . . . . . . . . . . . . . Machines Disabled . | . . . . . . . . . . . . . . . Actions | -11 -10 -10 -9 -9 -9 -8 -8 -8 -8 -8 -7 -7 -7 -7 --------- Run | Jun Mat Min Mat Min Exi Min Mat Gar Mat Gar Fac Was Fac Gar Total 11371 | 40 926 135 1254 671 220 341 502 552 1616 816 1121 509 1634 1034 Wait 1465 | . 84 5 146 8 . 21 317 64 131 81 127 17 272 192 Move 8565 | 32 716 105 950 627 217 300 154 424 1346 588 876 338 1228 664 Hop . | . . . . . . . . . . . . . . . Pick Up 92 | 2 17 1 13 3 2 . 1 8 3 12 9 3 9 9 Fast Attach 37 | 6 1 . 6 2 . . 1 1 5 . 3 6 4 2 Attach 40 | . 4 2 5 . . . 2 1 2 7 2 . 5 10 Detach 8 | . . . 1 . . . 1 . 1 . . . 3 2 Swap 117 | . 10 . 10 7 1 1 5 8 15 10 22 5 15 8 Drop 95 | . 9 1 19 4 . . . 5 16 3 10 11 10 7 Fire 823 | . 82 18 101 19 . 17 19 33 85 63 62 129 80 115 Melee 32 | . . . . . . . . . 4 7 7 . . 14 Ram 2 | . . . . . . . . . . . 2 . . . Kick . | . . . . . . . . . . . . . . . Crush 35 | . 3 3 3 1 . 2 2 . 8 . . . 8 5 Escape Stasis 20 | . . . . . . . . 8 . 6 . . . 6 Rewire 40 | . . . . . . . . . . 39 1 . . . Trap . | . . . . . . . . . . . . . . . Miscellaneous . | . . . . . . . . . . . . . . . Route ------- -11/Junkyard -10/Materials (discovered 3 exits: *Mat x2 / [*Min]) -10/Mines -9/Materials (discovered 4 exits: *Mat x3 / *Min) -9/Mines (discovered 3 exits: *Mat x2 / *Exi) -9/Exiles (discovered 2 exits: [*Min x2]) -8/Mines -8/Materials (discovered 2 exits: Fac / Gar) -8/Garrison (discovered 4 exits: *Mat x4) -8/Materials (discovered 3 exits: *Fac x2 / Gar) -8/Garrison (discovered 3 exits: *Fac x3) -7/Factory (discovered 3 exits: [*Fac x2] / [*Sto]) -7/Waste -7/Factory (discovered 3 exits: [*Fac] / [*Sto] / Gar) -7/Garrison (discovered 2 exits: [*Fac x2]) History --------- Turn | Location | Event 35 | -11/Junkyard | Discovered new exit (range 15) 61 | -11/Junkyard | Entered Materials 304 | -10/Materials | Build established: Mutant 748 | -10/Materials | Repaired Lgt. Treads 813 | -10/Materials | Discovered new exit (range 8) 888 | -10/Materials | Discovered new exit (range 14) 978 | -10/Materials | Discovered new exit (range 10) 1568 | -10/Materials | Entered Mines 1618 | -10/Mines | Discovered new exit (range 11) 1655 | -10/Mines | Found a damaged Exp. Sensor Array with a note attached 1659 | -10/Mines | Found Prototype Device 1669 | -10/Mines | Assembled infested the area 1703 | -10/Mines | Core integrity fell below 50% 1795 | -10/Mines | Entered Materials 1795 | -9/Materials | Evolved 2 slots: Utility x2 2036 | -9/Materials | Repaired Lgt. Treads 2069 | -9/Materials | Repaired Med. Armor Plating 2269 | -9/Materials | Discovered new exit (range 8) 2476 | -9/Materials | Discovered new exit (range 14) 2617 | -9/Materials | Identified Exp. Sensor Array 3422 | -9/Materials | Central database locked down 3429 | -9/Materials | Discovered new exit (range 11) 3523 | -9/Materials | Repaired Imp. EM Shotgun 4124 | -9/Materials | Discovered new exit (range 15) 4212 | -9/Materials | Entered Mines 4371 | -9/Mines | Deemed a non-threat by the Exiles lab entrance 4373 | -9/Mines | Discovered new exit (range 5) 4405 | -9/Mines | Received a Rocket Launcher from a helpful Derelict 4452 | -9/Mines | Core integrity fell below 50% 4511 | -9/Mines | Discovered new exit (range 5) 4715 | -9/Mines | Learned location of 1 exit from Materials 4735 | -9/Mines | Found a hidden stash of uninstalled traps 5008 | -9/Mines | Joined a pair of Derelicts in attacking an 0b10 outpost 5131 | -9/Mines | Discovered new exit (range 11) 5547 | -9/Mines | Entered Exiles 5599 | -9/Exiles | Discovered new exit (range 15) 5634 | -9/Exiles | Met 8R-AWN 5680 | -9/Exiles | Met EX-HEX 5767 | -9/Exiles | Met EX-BIN 5808 | -9/Exiles | Aligned with FarCom system 5811 | -9/Exiles | Given EX-Vault access code 5885 | -9/Exiles | Opened EX-Vault 5907 | -9/Exiles | Found Chronowheel 5921 | -9/Exiles | Found Skeleton Box 5989 | -9/Exiles | Warned to stay clear of 0b10 Research branches 6085 | -9/Exiles | Met EX-DEC 6098 | -9/Exiles | Learned location of Zion (-7) 6210 | -9/Exiles | Discovered new exit (range 14) 6245 | -9/Exiles | Stole two prototypes: Skeleton Box, Chronowheel 6245 | -9/Exiles | Entered Mines 7241 | -8/Mines | Discovered new exit (range 13) 7285 | -8/Mines | Entered Materials 7285 | -8/Materials | Evolved 2 slots: Propulsion x1, Utility x1 7286 | -8/Materials | Identified exit to Factory 7578 | -8/Materials | Build established: Scavenger-Mutant 7837 | -8/Materials | Garrison activated, responded to threat 8043 | -8/Materials | Identified exit to Garrison 8043 | -8/Materials | Entered Garrison 8043 | -8/Garrison | Accompanied by 1 ally 8250 | -8/Garrison | Triggered checkpoint 8320 | -8/Garrison | Installed Relay Interface Framework 8431 | -8/Garrison | Garrison Relay disabled 8514 | -8/Garrison | Triggered checkpoint 8738 | -8/Garrison | Destroyed 8 combat bots 8746 | -8/Garrison | Triggered checkpoint 8863 | -8/Garrison | Discovered new exit (range 64) 8863 | -8/Garrison | Discovered new exit (range 12) 8863 | -8/Garrison | Discovered new exit (range 43) 8863 | -8/Garrison | Discovered new exit (range 20) 9036 | -8/Garrison | Triggered checkpoint 9075 | -8/Garrison | Garrison Relay disabled 9154 | -8/Garrison | Triggered checkpoint 9242 | -8/Garrison | Entered Materials 10184 | -8/Materials | Repaired Imp. Shield Generator 10649 | -8/Materials | Build established: Mutant 10777 | -8/Materials | Discovered exit to Factory (range 10) 11133 | -8/Materials | Garrison activated, responded to threat 12047 | -8/Materials | Discovered exit to Factory (range 9) 12796 | -8/Materials | Identified exit to Garrison 12796 | -8/Materials | Entered Garrison 12796 | -8/Garrison | Accompanied by 1 ally 12924 | -8/Garrison | Garrison Relay disabled 13114 | -8/Garrison | Triggered checkpoint 13225 | -8/Garrison | Build established: Bothacker-Mutant 13374 | -8/Garrison | Lost 3 parts (3u) 13450 | -8/Garrison | Triggered checkpoint 13498 | -8/Garrison | Garrison Relay disabled 13656 | -8/Garrison | Learned Factory security intel 13711 | -8/Garrison | Discovered exit to Factory (range 3) 13742 | -8/Garrison | Discovered exit to Factory (range 73) 13742 | -8/Garrison | Discovered exit to Factory (range 59) 13742 | -8/Garrison | Discovered exit to Factory (range 8) 13874 | -8/Garrison | Triggered checkpoint 13954 | -8/Garrison | Expanded RIF knowledge: Zone Cloak 13975 | -8/Garrison | Garrison Relay disabled 14182 | -8/Garrison | Triggered checkpoint 14224 | -8/Garrison | Triggered checkpoint 14232 | -8/Garrison | Garrison Relay disabled 14324 | -8/Garrison | Expanded RIF knowledge: Alert ID Control 14480 | -8/Garrison | Entered Factory 14480 | -7/Factory | Accompanied by 3 allies 14480 | -7/Factory | Evolved 2 slots: Propulsion x1, Utility x1 14482 | -7/Factory | FarCom data flow suspended 14855 | -7/Factory | Repaired Exp. Sensor Array 15721 | -7/Factory | Discovered new exit (range 14) 15875 | -7/Factory | Discovered new exit (range 8) 16189 | -7/Factory | Discovered new exit (range 14) 16197 | -7/Factory | Garrison activated, responded to threat 16221 | -7/Factory | Sucked down chute 16221 | -7/Factory | Entered Waste 16233 | -7/Waste | Spotted C-40 Crusher 16236 | -7/Waste | Spotted C-40 Crusher 16240 | -7/Waste | 1 allies followed down the chute 16269 | -7/Waste | Allies destroyed C-40 Crusher 16292 | -7/Waste | Spotted C-40 Crusher 16301 | -7/Waste | Spotted C-40 Crusher 16309 | -7/Waste | Spotted C-40 Crusher 16316 | -7/Waste | Spotted C-40 Crusher 16392 | -7/Waste | Destroyed C-40 Crusher 16537 | -7/Waste | Destroyed C-40 Crusher 16630 | -7/Waste | Discovered new exit (range 13) 16645 | -7/Waste | Destroyed C-40 Crusher 16799 | -7/Waste | Destroyed C-40 Crusher 16844 | -7/Waste | Destroyed C-40 Crusher 17088 | -7/Waste | Entered Factory 17164 | -7/Factory | Repaired Rocket Launcher 17245 | -7/Factory | Repaired Com. Ion Cannon 17290 | -7/Factory | Repaired Imp. Shield Generator 17795 | -7/Factory | Discovered new exit (range 16) 17945 | -7/Factory | Build established: Scavenger-Mutant 18663 | -7/Factory | Discovered new exit (range 10) 18781 | -7/Factory | Build established: Bothacker-Mutant 19513 | -7/Factory | Build established: Scavenger-Mutant 19585 | -7/Factory | Identified exit to Garrison 19585 | -7/Factory | Entered Garrison 19585 | -7/Garrison | Accompanied by 2 allies 19630 | -7/Garrison | Triggered checkpoint 19657 | -7/Garrison | Garrison Relay disabled 19947 | -7/Garrison | Build established: Bothacker-Mutant 19997 | -7/Garrison | Spotted B-75 Beast 20015 | -7/Garrison | Destroyed B-75 Beast 20262 | -7/Garrison | Triggered checkpoint 20293 | -7/Garrison | Discovered new exit (range 12) 20340 | -7/Garrison | Triggered checkpoint 20369 | -7/Garrison | Garrison Relay disabled 20456 | -7/Garrison | Heavy support dispatched to Factory 20558 | -7/Garrison | Heavy support dispatched to Factory 20778 | -7/Garrison | Triggered checkpoint 20813 | -7/Garrison | Triggered checkpoint 20862 | -7/Garrison | Destroyed 8 combat bots 20967 | -7/Garrison | Heavy support dispatched to Factory 21012 | -7/Garrison | Triggered checkpoint 21147 | -7/Garrison | Discovered new exit (range 15) 21219 | -7/Garrison | Expanded RIF knowledge: Threat Obfuscation 21278 | -7/Garrison | Heavy support dispatched to Factory 21279 | -7/Garrison | Core integrity fell below 50% 21326 | -7/Garrison | Core integrity fell below 20% 21340 | -7/Garrison | Destroyed by H-61 Shepherd with Heavy Assault Cannon Last Messages --------------- 21237_ System corrupted: Matter fused (-10). H-XX Assembler finishes assembling H-61 Shepherd. 21278_ ALERT: Dispatching Heavy support to Factory. 21278_ Machine disabled. 21284_ Imp. Medium Armor Plating destroyed. 21290_ Activated siege mode. 21292_ Penetrated by Slug. 21295_ Imp. Medium Armor Plating destroyed. 21301_ Penetrated by Slug. 21304_ Assault Cannon destroyed. 21308_ System corrupted: Heat flow error (+200). 21319_ Hvy. Treads destroyed. 21319_ Antimatter Reactor destroyed. 21319_ Critical hit (Blast). 21319_ Knocked back. 21320_ Acquired 20 matter. 21325_ Penetrated by Slug. 21325_ Knocked back. 21336_ Rocket Launcher destroyed. 21336_ Destroyed Rocket Launcher. Map ----- +----------------------------------------------------+ | #???????? | | #???????? | | #### ############ < #???????? | | ???# #??????????# #???????? | | ???# #??????????##+##???????? | | #### #???????????# #????????? | | #???????????+ #????????? | | #???????????# #????????? | | #####???????????# #????????? | | #???????????????# #????????? | | +##???######??????# ########?? | | ??????# ### ## """"#?? | | ??? "#?? | | +?????# ###"## """"#?? | | ??????# "??????# ########?? | | ??????#"??????????# #????????? | | ??????????????????# #????????? | | ??????????????????# ##???????? | | ??????????????????# # ???????? | | ??????????????????# # #??????? | | ??????????????????# #"###????? | | ??????????????????# ####?? | | ??????????????????" "=!#?? | | ??????????????????" "!]#?? | | ??????????????????" "!!#?? | | ??????????????????" % "@*#?? | | ???????????????##"" % "##?? | | ???????????????#" % "#?? | | ???????????????#" #?? | | ???????????????#" ""H"" "#?? | | ???????????????#" """"""" "#?? | | ???????????????#"#"""""""#"#?? | | ???????????????#############?? | | ?????????????????????????????? | | ?????????????????????????????? | | | | | | | | | | | | | | | | | | | | | | | | | | | | | | | +----------------------------------------------------+ Best States ------------- Heat Dissipation 61 Energy Generation 23 Energy Capacity 325 Matter Stores 300 Matter Capacity 300 Sight Range 20 Robot Scan Range 20 Terrain Scan Density 10 Armor Coverage 900 Evasion (%) 40 Recoil Reduction 4 Offensive Hacking 10 Relay Coupler Types 2 Relay Coupler Value 38 Item Schematics ----------------- Exp. Sensor Array | -9/Materials | Scanalyzed Robot Schematics ------------------ M-13 Machinist | -10/Materials | Hacked Fabricated ------------ Nothing Alien Tech Used ----------------- None Achievements -------------- None Challenges ------------ None Game ------ Seed UltimateHybridMace Manual? 0 Play Time 01:40:36 Cumulative 231.1 hours Start 2024.02.23 @ 14:57:03 End 2024.02.23 @ 16:39:08 Sessions 1 Manual Loads 0 Difficulty Rogue Special Mode None Game No. 172 Rogue 172 Adventurer 0 Explorer 0 Win Type - Total 8 Types 5/0/1/1/0/0/0/1/0 Lore% 69 Gallery% 76 Achievement% 66 Wizard Run 0 Options --------- ASCII 0 Keyboard 1 Movement Numpad Keybinds 0 Fullscreen 2 Font 18/SmallcapsGlow Map View 76x50 Tactical HUD 1 Map Filters NONE Filters NONE Steam 1 RUN: b772f20c-c987-4217-9e89-52087583cc7a